Cogmind - Beta 13 @@@ ROGUE MODE // 2024.06.01 @ 14:48:58 Player: ttee1 Result: Destroyed by Y-54 Guardian with Gatling Laser Performance ------------- Evolutions (3) 1500 Regions Visited (4) 800 Robots Destroyed (24) 120 Value Destroyed (493) 493 Prototype IDs (2) 40 Alien Tech Used (0) 0 Bonus (18) 18 TOTAL SCORE: 2971 Bonus ------- High Alert Combat Kills 18 Cogmind --------- Core Integrity 0/700 Matter 170/300 Energy 100/100 System Corruption 0% Temperature Cool (12) Movement Core (50) Location -7/Factory Parts ------- > --- POWER (2) -------- (None) > --- PROPULSION (6) --- (None) > --- UTILITY (3) ------ Improved Signal Interpreter > --- WEAPON (2) ------- (None) > --- INVENTORY (5) ---- VTOL Module ECM Suite Improved Light Armor Plating Improved Shield Generator Peak State ------------ > --- POWER ------------ Light Nuclear Core > --- PROPULSION ------- Improved Flight Unit Improved Flight Unit Improved Flight Unit Cesium-ion Thruster > --- UTILITY ---------- Improved Signal Interpreter Transmission Jammer Hacking Suite > --- WEAPON ----------- Gatling Laser Flak Cannon > --- INVENTORY -------- Flight Unit Heat Sink ECM Suite Improved Light Armor Plating Improved Shield Generator [Rating: 33] Favorites ----------- Power Light Nuclear Core Engine Light Ion Engine Power Core Light Nuclear Core Propulsion Improved Flight Unit Leg Aluminum Leg Wheel Wheel Flight Unit Improved Flight Unit Utility Heat Sink Device Heat Sink Processor Improved Signal Interpreter Hackware Hacking Suite Protection Improved Light Armor Plating Weapon Flak Cannon Energy Gun Medium Laser Ballistic Gun Autogun Ballistic Cannon Flak Cannon Build | -11 -10 -9 -8 -7 ------- Run | Yrd Mat Mat Mat Fac Slots Evolved 6 | . . 2 2 2 Power 1 | . . . . 1 Propulsion 4 | . . 1 2 1 Utility 1 | . . 1 . . Weapon . | . . . . . Parts Attached 40 | 6 3 16 5 10 Power 3 | 1 . 1 . 1 Engine 1 | 1 . . . . Core 2 | . . 1 . 1 Reactor . | . . . . . Propulsion 10 | 3 . 5 1 1 Treads . | . . . . . Leg 1 | 1 . . . . Wheel 2 | 2 . . . . Hover . | . . . . . Flight 7 | . . 5 1 1 Utility 11 | . 2 2 3 4 Device 7 | . 2 1 1 3 Storage . | . . . . . Processor 2 | . . 1 1 . Hackware 1 | . . . . 1 Protection 1 | . . . 1 . Artifact . | . . . . . Weapon 16 | 2 1 8 1 4 Energy Gun 5 | 2 . 2 . 1 Energy Cannon . | . . . . . Ballistic Gun 3 | . . 2 . 1 Ballistic Cannon 8 | . 1 4 1 2 Launcher . | . . . . . Special Weapon . | . . . . . Impact Weapon . | . . . . . Slashing Weapon . | . . . . . Piercing Weapon . | . . . . . Special Melee Weapon . | . . . . . Unidentified Prototypes 2 | . . 2 . . Parts Lost 20 | . . 7 . 13 Power 3 | . . 1 . 2 Propulsion 8 | . . 3 . 5 Utility 4 | . . 1 . 3 Weapon 5 | . . 2 . 3 Highest Loss Streak 11 | . . 5 . 11 To Critical Strikes 1 | . . . . 1 Average Slot Usage (%) 72 | . 84 71 81 59 Engine 4 | . 14 4 . . Core 4 | . . 3 9 5 Wheel 11 | . 28 12 . . Flight 14 | . . 12 34 23 Device 13 | . 13 17 6 8 Processor 4 | . . 2 10 8 Energy Gun 9 | . 24 4 6 6 Ballistic Cannon 8 | . 3 13 9 2 Naked Turns . | . . . . . Heaviest Build 20 | 7 12 18 20 19 Greatest Support 20 | 20 20 20 20 20 Greatest Overweight (x) 2 | . . 2 . 1 Average Overweight (x) . | . . . . . Largest Inventory Capacity 5 | 5 5 5 5 5 Average Capacity 5 | 5 5 5 5 5 Most Carried 5 | 4 5 5 5 5 Average Carried 4 | 1 3 4 4 4 Final Capacity 5 | 5 5 5 5 5 Final Carried 5 | 2 5 4 5 4 Class Distribution -------------------- 82% | Mutant 17% | Sprinter Dominant Class ---------------- Mutant | -10/Materials Mutant | -9/Materials Sprinter | -8/Materials Mutant | -7/Factory Resources | -11 -10 -9 -8 -7 ----------- Run | Yrd Mat Mat Mat Fac Matter Collected 618 | 260 50 106 64 138 Remotely . | . . . . . Salvage Created 550 | 50 166 144 54 136 Parts 43 | 4 6 19 4 10 Haulers Intercepted . | . . . . . Recyclers Shooed . | . . . . . Parts Field Recycled . | . . . . . Retrieved Matter . | . . . . . Parts Self-Destructed . | . . . . . Prevented . | . . . . . Kills | -11 -10 -9 -8 -7 ------- Run | Yrd Mat Mat Mat Fac Combat Hostiles Destroyed 18 | 1 5 7 1 4 Guns 9 | 1 3 1 . 4 Cannons 9 | . 2 6 1 . Classes Destroyed 6 | 1 2 2 . 1 Worker 1 | . . . . 1 Recycler 1 | . . 1 . . Watcher 4 | . 1 2 . 1 Swarmer 13 | . 3 6 . 4 Grunt 3 | 1 2 . . . Sentry 2 | . . 1 1 . Best Kill Streak 5 | 1 3 5 1 2 Combat Bots Only 4 | 1 3 4 1 2 Max Kills in Single Turn 2 | 1 1 2 1 1 Gunslinging . | . . . . . Exploded . | . . . . . Melee . | . . . . . Uniques/NPCs Destroyed . | . . . . . Combat | -11 -10 -9 -8 -7 -------- Run | Yrd Mat Mat Mat Fac Hostile Shots Fired 370 | 1 19 83 28 239 Missed 160 | . 6 32 9 113 Damage Taken 2407 | 11 114 592 307 1383 Core 858 | . 30 112 8 708 Absorbed by Shields 67 | . 23 39 . 5 Regen/Repaired (Parts) 44 | . . . 44 . Core Remaining (%) 89 | 100 88 72 98 . Volleys Fired 49 | 2 12 15 4 16 Largest 2 | 2 2 2 2 2 Hottest 124 | 90 90 94 94 124 Shots Fired 80 | 4 24 28 6 18 Gun 39 | 4 19 4 1 11 Cannon 41 | . 5 24 5 7 Launcher . | . . . . . Special . | . . . . . Kinetic 44 | . 5 24 5 10 Thermal 25 | 2 12 3 . 8 Explosive . | . . . . . Electromagnetic 11 | 2 7 1 1 . Robot Hit Streak 4 | 1 4 3 4 4 Robot Miss Streak 5 | 1 3 4 2 5 Penetration Max . | . . . . . Secondary Targets 1 | . 1 . . . Max Gunslinging Chain 1 | . 1 . . . Shots Hit Robots 51 | 2 13 18 5 13 Core Hits 44 | 1 8 19 5 11 Critical Kills . | . . . . . Critical Parts Destroyed . | . . . . . Critical Strikes 1 | . . 1 . . Blast 1 | . . 1 . . Melee Attacks . | . . . . . Impact . | . . . . . Slashing . | . . . . . Piercing . | . . . . . Sneak Attacks . | . . . . . Combat Hostiles . | . . . . . Follow-up Attacks . | . . . . . Damage Inflicted 1031 | 27 185 446 93 280 Guns 364 | 27 130 12 16 179 Cannons 576 | . 55 343 77 101 Explosions 91 | . . 91 . . Melee . | . . . . . Ramming . | . . . . . Kinetic 612 | . 55 343 77 137 Thermal 230 | 12 63 12 . 143 Explosive 91 | . . 91 . . Electromagnetic 98 | 15 67 . 16 . Impact . | . . . . . Slashing . | . . . . . Piercing . | . . . . . Highest Corruption 2 | . . 2 . . Average Corruption 1 | . . 1 . . Corruption Purged . | . . . . . Corruption Blocked . | . . . . . Effects 10 | . . 10 . . Message Errors 2 | . . 2 . . Matter Fused 1 | . . 1 . . Heat Flow Errors 1 | . . 1 . . Energy Discharges 2 | . . 2 . . Parts Fused 1 | . . 1 . . Data Loss (minor) 1 | . . 1 . . Misfires 2 | . . 2 . . Overload Shots . | . . . . . Overflow Damage 30 | . . 30 . . Projectiles 5 | . . 5 . . Explosions 25 | . . 25 . . Melee . | . . . . . Knockbacks 10 | . . 5 3 2 Impact . | . . . . . Kinetic 8 | . . 4 2 2 Secondary 2 | . . 1 1 . Self-Inflicted Damage 78 | . . 78 . . Shots 1 | . . 1 . . Rammed . | . . . . . Targets Rammed . | . . . . . Kicked . | . . . . . Crushed . | . . . . . Highest Temperature 186 | 36 186 172 53 64 Average Temperature 40 | 22 100 37 28 23 Received Heat Transfer 362 | 6 36 89 36 195 Siege Activations . | . . . . . Robots Corrupted . | . . . . . Combat Hostiles . | . . . . . Parts Fried . | . . . . . Impact Corruptions . | . . . . . Robots Melted . | . . . . . Combat Hostiles . | . . . . . Parts Melted . | . . . . . Heat Transferred 584 | 37 185 37 . 325 Parts Sabotaged . | . . . . . Parts Stolen . | . . . . . Parts Stripped . | . . . . . Power Chain Reactions . | . . . . . Alert | -11 -10 -9 -8 -7 ------- Run | Yrd Mat Mat Mat Fac Peak Influence 576 | 20 216 463 470 576 Initial 213 | . 13 91 195 213 Average 259 | 2 96 282 298 391 Maximum Alert Level 2 | . 1 2 2 2 Low Security (%) 38 | 100 91 36 6 . Level 1 44 | . 8 49 86 58 Level 2 16 | . . 14 6 41 Level 3 . | . . . . . Level 4 . | . . . . . Level 5 . | . . . . . High Security . | . . . . . Max Security . | . . . . . Squads Dispatched 12 | . 1 2 2 7 Investigation 3 | . . 2 . 1 Extermination . | . . . . . Reinforcement 6 | . 1 . 2 3 Assault . | . . . . . Garrison 3 | . . . . 3 Intercept . | . . . . . Searches Triggered . | . . . . . Construction Impeded . | . . . . . Haulers Reinforced . | . . . . . Active Scanning Responses . | . . . . . Cargo Convoy Interrupts . | . . . . . Stealth | -11 -10 -9 -8 -7 --------- Run | Yrd Mat Mat Mat Fac Distress Signals 3 | . . 1 2 . Communications Jammed 5 | . . . . 5 Distress Signals 4 | . . . . 4 Times Spotted 86 | 1 9 30 17 29 Peak Tracking Total 11 | 1 3 10 11 7 Tactical Retreats 13 | . . 7 2 4 Traps | -11 -10 -9 -8 -7 ------- Run | Yrd Mat Mat Mat Fac Traps Triggered 6 | . . 4 . 2 Indirectly . | . . . . . Trap Hack Attempts . | . . . . . Triggered . | . . . . . Disarmed 1 | . 1 . . . Reprogrammed . | . . . . . Reused . | . . . . . Traps Extracted . | . . . . . Installed . | . . . . . Triggered . | . . . . . Machines | -11 -10 -9 -8 -7 ---------- Run | Yrd Mat Mat Mat Fac Machines Disabled 1 | . . 1 . . Max in Single Turn 1 | . . 1 . . Machines Repaired . | . . . . . Machines Dismantled . | . . . . . Machines Sabotaged . | . . . . . Overloaded Fab Kills . | . . . . . Hacking | -11 -10 -9 -8 -7 --------- Run | Yrd Mat Mat Mat Fac Machines Accessed 18 | . 3 4 3 8 Terminals 13 | . 2 3 2 6 Fabricators 1 | . . . . 1 Repair Stations 1 | . . . 1 . Recycling Units 1 | . 1 . . . Scanalyzers 2 | . . 1 . 1 Garrison Access . | . . . . . Total Hacks 49 | . 10 12 10 17 Successful 24 | . 6 4 6 8 Failed 25 | . 4 8 4 9 Catastrophic 3 | . . 1 . 2 Database Lockouts . | . . . . . Manual . | . . . . . Terminals 35 | . 7 8 6 14 Fabricators 1 | . . . . 1 Repair Stations 4 | . . . 4 . Recycling Units 3 | . 3 . . . Scanalyzers 6 | . . 4 . 2 Garrison Access . | . . . . . Terminal Hacks 15 | . 5 1 3 6 Record 7 | . 3 1 2 1 Part Schematic 1 | . . . . 1 Robot Schematic 1 | . . . . 1 Open DSF 1 | . . . . 1 Disarm Traps 1 | . 1 . . . Maintenance Status 1 | . . . 1 . Recall Investigation 1 | . . . . 1 Recall Reinforcements 1 | . . . . 1 Zone Layout 1 | . 1 . . . Fabricator Hacks . | . . . . . Repair Station Hacks 3 | . . . 3 . Scan Component 2 | . . . 2 . Repair 1 | . . . 1 . Recycling Unit Hacks 1 | . 1 . . . Report Inventory 1 | . 1 . . . Scanalyzer 5 | . . 3 . 2 Insert Component 2 | . . 1 . 1 Analyze 3 | . . 2 . 1 Garrison Access Hacks . | . . . . . Unauthorized Hacks . | . . . . . Terminals . | . . . . . Fabricators . | . . . . . Repair Stations . | . . . . . Recycling Units . | . . . . . Scanalyzers . | . . . . . Garrison Access . | . . . . . Data Cores Recovered . | . . . . . Used . | . . . . . Hacking Detections 13 | . 3 2 2 6 Full Trace Events 1 | . . . . 1 Feedback Events . | . . . . . Feedback Blocked . | . . . . . Robot Schematics Acquired 1 | . . . . 1 Robots Built . | . . . . . Authchips . | . . . . . Time . | . . . . . Total Robot Build Rating . | . . . . . Part Schematics Acquired 3 | . . 1 . 2 Parts Built . | . . . . . Authchips . | . . . . . Time . | . . . . . Total Part Build Rating . | . . . . . Parts Repaired 1 | . . . 1 . Time 38 | . . . 38 . Parts Recycled . | . . . . . Recycled Matter . | . . . . . Retrieved Matter . | . . . . . Retrieved Components . | . . . . . Parts Scanalyzed 2 | . . 1 . 1 Part Schematics Acquired 2 | . . 1 . 1 Parts Damaged . | . . . . . Bothacking | -11 -10 -9 -8 -7 ------------ Run | Yrd Mat Mat Mat Fac Used RIF Installer . | . . . . . Robots Hacked . | . . . . . Non-combat . | . . . . . Combat . | . . . . . Robot Hacks Applied . | . . . . . Relay Couplers Released . | . . . . . Fabnet Peak Effective % . | . . . . . Robots Rewired . | . . . . . Allies Hacked . | . . . . . Hacks Repelled . | . . . . . Allies | -11 -10 -9 -8 -7 -------- Run | Yrd Mat Mat Mat Fac Total Allies . | . . . . . Largest Group . | . . . . . Highest-Rated Group . | . . . . . Highest-Rated Ally . | . . . . . Total Orders . | . . . . . Ally Attacks . | . . . . . Total Damage . | . . . . . Kills . | . . . . . Allies Corrupted . | . . . . . Allies Melted . | . . . . . Intel | -11 -10 -9 -8 -7 ------- Run | Yrd Mat Mat Mat Fac Robot Analysis Total . | . . . . . Derelict Logs Recovered . | . . . . . Drone Launches . | . . . . . Drone Recoveries . | . . . . . Exploration | -11 -10 -9 -8 -7 ------------- Run | Yrd Mat Mat Mat Fac Turns Passed 1445 | 63 297 587 152 346 Spaces Moved 2367 | 64 285 931 285 802 Core 60 | 24 . 16 . 20 Treads . | . . . . . Legs . | . . . . . Wheels 667 | 40 285 342 . . Hover . | . . . . . Flight 1640 | . . 573 285 782 Fastest Speed 29 | 50 80 34 29 29 Average Speed 46 | 68 80 52 29 33 Slowest Speed 150 | 80 80 150 34 100 Overloaded Moves . | . . . . . Propulsion Burnouts . | . . . . . Robots Hopped 18 | . . 6 5 7 Cave-ins Triggered . | . . . . . Exploration Rate (%) 33 | 8 53 52 31 21 Regions Visited 4 Branch Regions . Pre-discovered Areas . | . . . . . Known Exits Taken 2 | . . 1 1 . Unknown Exits Taken 2 | 1 1 . . . Scrap Searched . | . . . . . Spaces Dug . | . . . . . Terrain Destroyed 35 | . 2 33 . . Melee . | . . . . . Projectile 2 | . 2 . . . AOE 33 | . . 33 . . Terrain Rammed . | . . . . . Walls Destroyed . | . . . . . Machines Disabled . | . . . . . Actions | -11 -10 -9 -8 -7 --------- Run | Yrd Mat Mat Mat Fac Total 2603 | 79 330 1001 339 854 Wait 121 | . 20 30 48 23 Move 2328 | 63 284 918 274 789 Hop 17 | . . 6 5 6 Pick Up 25 | 7 7 6 2 3 Fast Attach 18 | . 2 6 3 7 Attach 22 | 6 1 10 2 3 Detach 6 | 1 . 3 1 1 Swap 1 | . . 1 . . Drop 16 | . 4 6 . 6 Fire 49 | 2 12 15 4 16 Melee . | . . . . . Ram . | . . . . . Kick . | . . . . . Crush . | . . . . . Escape Stasis . | . . . . . Rewire . | . . . . . Trap . | . . . . . Miscellaneous . | . . . . . Route ------- -11/Scrapyard -10/Materials (discovered 2 exits: *Mat / [*Min]) -9/Materials -8/Materials -7/Factory History --------- Turn | Location | Event 2 | -11/Scrapyard | Met Revision 17 50 | -11/Scrapyard | Discovered new exit (range 8) 64 | -11/Scrapyard | Entered Materials 101 | -10/Materials | Discovered new exit (range 16) 223 | -10/Materials | Discovered new exit (range 10) 307 | -10/Materials | Build established: Mutant 361 | -10/Materials | Entered another Materials area 361 | -9/Materials | Evolved 2 slots: Propulsion x1, Utility x1 758 | -9/Materials | Lost 5 parts (3n2w) 945 | -9/Materials | Discovered new exit (range 7) 947 | -9/Materials | Identified exit to Materials 948 | -9/Materials | Entered another Materials area 948 | -8/Materials | Evolved 2 slots: Propulsion x2 1094 | -8/Materials | Repaired Shock Rifle? 1094 | -8/Materials | Discovered new exit (range 11) 1099 | -8/Materials | Identified exit to Factory 1100 | -8/Materials | Entered Factory 1100 | -7/Factory | Evolved 2 slots: Power x1, Propulsion x1 1428 | -7/Factory | Core integrity fell below 50% 1441 | -7/Factory | Core integrity fell below 20% 1446 | -7/Factory | Destroyed by Y-54 Guardian with Gatling Laser Last Messages --------------- 01411_ O-16 Technician: "IFF HANDSHAKE FAILED. SECURING TERMINAL." 01413_ Mic. Nuclear Core destroyed. 01414_ Flight Unit destroyed. 01416_ Imp. Flight Unit destroyed. 01416_ Recalibrator destroyed. 01418_ ALERT: Hostiles spotted, dispatching reinforcements to Terminal F007. 01424_ S-27 Virus knocked back. 01427_ S-27 Virus destroyed. 01429_ S-27 Virus knocked back. 01434_ Acquired 3 matter. 01436_ Critical hit (Destroy). 01436_ Adv. Assault Cannon destroyed. 01437_ Acquired Autogun. 01443_ S-27 Virus destroyed. 01445_ Autogun destroyed. 01445_ Acquired 20 matter. 01445_ U-05 Engineer destroyed. 01446_ Acquired VTOL Module. Map ----- +----------------------------------------------------+ | ## #???# """" #?????????# #???? | | ## """#???# """" #?????????# #???? | | ## [ Y"#???# """" #?????????# #??? | | ?# """##### """" ########### #??? | | ?#[ + """" #?? | | ?###+##### """" #####+##### #?? | | ?????????# #?? ??# """ #? | | ?????????# #?# ## """"" #? "" | | ???? ????# #?# """ ## """"" # | | ???? #???# ### """ !## # "" | | ??## ##### + """ ## + | | ??# #####+### ######## # "" | | ??# ########## #?? ########?###### # | | ??# #?######## ##""" #????????# !# ##### | | ??# #?# # ##""" #???######[ # | | ??# #?# " ! # ##""" +???? # # | | ??# #?# T + ## #????? # "" # | | ??# #?# " ###############+## # T" # | | ??# #?# ! #???# # + "" # | | ??# #?# #???# """ """ # # # | | ### #?###+####???# """ """ # ###### | | ##### #??????# """ """ # t | | !! #??????# s g# | | ! #??????# %m= Y/ | | """ #??????# ! = %* Y # | | """ ###????# %@! g # | | """ #????# Y *"" """ ## ####+####### | | ###### ""F""" ## #?# | | /u """"" ## #?# | | ###### ## #?# | | #????############### #?# | | ###########+###??????????# + #?# | | ?????????????????????????# #### #?########## | | ?????????????????????????# #??# ### | | ?????????????????????????#########??# / | | ??????????????????????????????????###/### | | ??????????????????????????????????# # | | ??????????????????????????????????#"" # | | ??????????????????????????????????#"" " # | | ??????????????????????????????????#G " # | | ??????????????????????????????????#"" " # | | ??????????????????????????????????#"" " # | | ??????????????????????????????????# " # | | ??????????????????????????????????# " # | | ??????????????????????????????????# " # | | ??????????????????????????????????# " ########## | | ??????????????????????????????????# " #????????? | | ??????????????????????????????????# ?????????? | | ??????????????????????????????????#####+?????????? | | ??????????????????????????????????????? ?????????? | +----------------------------------------------------+ Best States ------------- Heat Dissipation 38 Energy Generation 15 Energy Capacity 160 Matter Stores 300 Matter Capacity 300 Sight Range 16 Terrain Scan Density 10 ECM Strength 1 Jamming Range 12 Armor Coverage 150 Evasion (%) 64 Particle Charging 15 Offensive Hacking 10 Item Schematics ----------------- Imp. Flight Unit | -9/Materials | Scanalyzed ECM Suite | -7/Factory | Scanalyzed Recalibrator | -7/Factory | Hacked Robot Schematics ------------------ H-55 Commando | -7/Factory | Hacked Fabricated ------------ Nothing Alien Tech Used ----------------- None Achievements -------------- GoHome() More Dakka Please No Signal Slippery One Challenges ------------ None Game ------ Seed GreatPlatingAutogun Manual? 0 Play Time 00:48:28 Cumulative 3.6 hours Start 2024.05.31 @ 18:58:56 End 2024.06.01 @ 14:48:58 Sessions 4 Manual Loads 0 Difficulty Rogue Special Mode None Game No. 3 Rogue 3 Adventurer 0 Explorer 0 Win Type - Total 0 Types 0/0/0/0/0/0/0/0/0 Lore% 5 Gallery% 6 Achievement% 8 Wizard Run 0 Options --------- Layout 1 ASCII 0 Keyboard 0 Movement Mouse Keybinds 0 Fullscreen 2 Font 32/Cog Map View 50x35 Zoom Use 0% Tactical HUD 1 Map Filters NONE Filters NONE Steam 1 RUN: 44e7bc07-0f17-4b02-9fa6-2bf62662bd95